[Event "Nové Hrady - Rapid A"]
[Site "Nové Hrady, Czech Republic"]
[Date "2023.08.12"]
[Round "1.7"]
[White "Hokr, Matyáš"]
[Black "Slabý, Matěj"]
[Result "0-1"]
[TimeControl "2x20min+5s"]
[WhiteFideId "23734663"]
[BlackFideId "23734876"]
[WhiteElo "1228"]
[BlackElo "1944"]

1. e4 {[%clk 00:20:03]} {[%emt 00:00:07]} c5 {[%clk 00:20:05]} {[%emt
00:00:05]} 2. f4 {[%clk 00:20:06]} {[%emt 00:00:02]} Nc6 {[%clk 00:19:49]}
{[%emt 00:00:21]} 3. Nf3 {[%clk 00:20:10]} {[%emt 00:00:02]} e6 {[%clk
00:19:52]} {[%emt 00:00:02]} 4. Bb5 {[%clk 00:20:12]} {[%emt 00:00:02]} Nge7
{[%clk 00:19:51]} {[%emt 00:00:06]} 5. d3 {[%clk 00:20:09]} {[%emt 00:00:08]}
g6 {[%clk 00:19:43]} {[%emt 00:00:13]} 6. Bxc6 {[%clk 00:20:05]} {[%emt
00:00:09]} Nxc6 {[%clk 00:19:47]} {[%emt 00:00:02]} 7. O-O {[%clk 00:20:01]}
{[%emt 00:00:08]} Bg7 {[%clk 00:19:44]} {[%emt 00:00:08]} 8. c3 {[%clk
00:20:02]} {[%emt 00:00:04]} O-O {[%clk 00:19:44]} {[%emt 00:00:05]} 9. Be3
{[%clk 00:19:57]} {[%emt 00:00:10]} d6 {[%clk 00:19:33]} {[%emt 00:00:16]} 10.
Nbd2 {[%clk 00:19:57]} {[%emt 00:00:05]} a6 {[%clk 00:19:09]} {[%emt 00:00:29]}
11. a4 {[%clk 00:19:34]} {[%emt 00:00:28]} b6 {[%clk 00:18:45]} {[%emt
00:00:28]} 12. Nc4 {[%clk 00:19:02]} {[%emt 00:00:38]} d5 {[%clk 00:18:08]}
{[%emt 00:00:42]} 13. Ncd2 {[%clk 00:18:56]} {[%emt 00:00:11]} d4 {[%clk
00:15:12]} {[%emt 00:03:01]} 14. cxd4 {[%clk 00:18:50]} {[%emt 00:00:11]} Nxd4
{[%clk 00:15:15]} {[%emt 00:00:02]} 15. e5 {[%clk 00:18:08]} {[%emt 00:00:46]}
Nf5 {[%clk 00:14:27]} {[%emt 00:00:54]} 16. Qe2 {[%clk 00:17:56]} {[%emt
00:00:17]} Qd7 {[%clk 00:14:08]} {[%emt 00:00:25]} 17. Ne4 {[%clk 00:17:37]}
{[%emt 00:00:23]} Rd8 {[%clk 00:12:36]} {[%emt 00:01:37]} 18. Rad1 {[%clk
00:17:37]} {[%emt 00:00:05]} Qxa4 {[%clk 00:12:11]} {[%emt 00:00:30]} 19. g4
{[%clk 00:17:00]} {[%emt 00:00:42]} Ne7 {[%clk 00:09:55]} {[%emt 00:02:21]} 20.
Nd6 {[%clk 00:16:56]} {[%emt 00:00:09]} Nd5 {[%clk 00:09:27]} {[%emt 00:00:33]}
21. Ng5 {[%clk 00:16:20]} {[%emt 00:00:41]} Rxd6 {[%clk 00:09:17]} {[%emt
00:00:15]} 22. exd6 {[%clk 00:16:16]} {[%emt 00:00:09]} Nxe3 {[%clk 00:09:19]}
{[%emt 00:00:06]} 23. f5 {[%clk 00:15:26]} {[%emt 00:00:52]} exf5 {[%clk
00:06:39]} {[%emt 00:02:44]} 24. gxf5 {[%clk 00:15:26]} {[%emt 00:00:05]} Bxf5
{[%clk 00:06:18]} {[%emt 00:00:26]} 25. Nf3 {[%clk 00:13:52]} {[%emt 00:01:40]}
Nxd1 {[%clk 00:05:41]} {[%emt 00:00:42]} 26. Rxd1 {[%clk 00:13:49]} {[%emt
00:00:08]} Re8 {[%clk 00:05:33]} {[%emt 00:00:13]} 27. Qg2 {[%clk 00:12:58]}
{[%emt 00:00:56]} Qxd1+ {[%clk 00:05:35]} {[%emt 00:00:02]} 0-1

[Event "Nové Hrady - Rapid A"]
[Site "Nové Hrady, Czech Republic"]
[Date "2023.08.12"]
[Round "2.1"]
[White "Půlpán, Jakub"]
[Black "Prinz, Hubert"]
[Result "1-0"]
[TimeControl "2x20min+5s"]
[WhiteFideId "302759"]
[BlackFideId "1639447"]
[WhiteElo "2515"]
[BlackElo "2038"]

1. Nf3 {[%clk 00:20:09]} {[%emt 00:00:39]} Nc6 {[%clk 00:20:09]} {[%emt
00:00:02]} 2. e4 {[%clk 00:19:46]} {[%emt 00:00:27]} e6 {[%clk 00:20:11]}
{[%emt 00:00:03]} 3. d4 {[%clk 00:19:18]} {[%emt 00:00:33]} a6 {[%clk
00:19:13]} {[%emt 00:01:03]} 4. d5 {[%clk 00:19:08]} {[%emt 00:00:16]} exd5
{[%clk 00:19:16]} {[%emt 00:00:02]} 5. exd5 {[%clk 00:19:06]} {[%emt 00:00:06]}
Qe7+ {[%clk 00:19:06]} {[%emt 00:00:14]} 6. Be2 {[%clk 00:18:58]} {[%emt
00:00:14]} Ne5 {[%clk 00:19:04]} {[%emt 00:00:08]} 7. O-O {[%clk 00:18:49]}
{[%emt 00:00:14]} d6 {[%clk 00:19:03]} {[%emt 00:00:06]} 8. Nd4 {[%clk
00:18:47]} {[%emt 00:00:06]} c5 {[%clk 00:18:17]} {[%emt 00:00:51]} 9. dxc6
{[%clk 00:18:47]} {[%emt 00:00:06]} Nxc6 {[%clk 00:18:20]} {[%emt 00:00:02]} 10.
Nc3 {[%clk 00:17:00]} {[%emt 00:01:51]} Nxd4 {[%clk 00:17:21]} {[%emt
00:01:05]} 11. Qxd4 {[%clk 00:17:02]} {[%emt 00:00:03]} Qe5 {[%clk 00:15:11]}
{[%emt 00:02:14]} 12. Qa4+ {[%clk 00:15:54]} {[%emt 00:01:15]} Bd7 {[%clk
00:14:44]} {[%emt 00:00:31]} 13. Qb3 {[%clk 00:15:57]} {[%emt 00:00:01]} O-O-O
{[%clk 00:13:51]} {[%emt 00:00:59]} 14. Bf3 {[%clk 00:15:49]} {[%emt 00:00:13]}
Bc6 {[%clk 00:13:30]} {[%emt 00:00:26]} 15. Bxc6 {[%emt 00:00:03]} bxc6 16. Qb6
{[%clk 00:15:43]} {[%emt 00:00:13]} Ne7 {[%clk 00:13:23]} {[%emt 00:00:16]} 17.
Qxa6+ {[%clk 00:15:46]} {[%emt 00:00:02]} Kc7 {[%clk 00:13:23]} {[%emt
00:00:05]} 18. Qa7+ {[%clk 00:15:43]} {[%emt 00:00:09]} Kc8 {[%clk 00:13:23]}
{[%emt 00:00:04]} 19. Na4 {[%clk 00:15:44]} {[%emt 00:00:04]} Nd5 {[%clk
00:10:56]} {[%emt 00:02:33]} 20. c4 {[%clk 00:15:48]} Rd7 {[%clk 00:10:35]}
{[%emt 00:00:26]} 21. Qa6+ {[%clk 00:15:50]} {[%emt 00:00:02]} Rb7 {[%clk
00:10:16]} {[%emt 00:00:23]} 22. cxd5 {[%clk 00:15:53]} {[%emt 00:00:03]} cxd5
{[%clk 00:10:08]} {[%emt 00:00:14]} 23. Bf4 {[%clk 00:15:22]} {[%emt 00:00:35]}
Qxf4 {[%clk 00:09:54]} {[%emt 00:00:20]} 24. Nb6+ {[%clk 00:15:14]} {[%emt
00:00:12]} Kc7 {[%clk 00:09:51]} {[%emt 00:00:08]} 1-0

[Event "Nové Hrady - Rapid A"]
[Site "Nové Hrady, Czech Republic"]
[Date "2023.08.12"]
[Round "2.2"]
[White "Urban, Zdeněk"]
[Black "Babula, Milan"]
[Result "0-1"]
[TimeControl "2x20min+5s"]
[WhiteFideId "312754"]
[BlackFideId "300632"]
[WhiteElo "2048"]
[BlackElo "2212"]

1. d4 {[%clk 00:20:06]} {[%emt 00:00:04]} Nf6 {[%clk 00:20:07]} {[%emt
00:00:03]} 2. Nf3 {[%clk 00:20:07]} {[%emt 00:00:04]} g6 {[%clk 00:20:10]}
{[%emt 00:00:02]} 3. g3 {[%clk 00:20:10]} {[%emt 00:00:03]} Bg7 {[%clk
00:20:13]} 4. Bg2 {[%clk 00:20:14]} O-O {[%emt 00:00:04]} 5. c4 d6 {[%clk
00:20:14]} {[%emt 00:00:06]} 6. O-O {[%emt 00:00:17]} Nbd7 {[%clk 00:20:01]}
{[%emt 00:00:05]} 7. Nc3 {[%clk 00:20:11]} {[%emt 00:00:13]} c6 {[%clk
00:19:53]} {[%emt 00:00:13]} 8. e4 {[%clk 00:18:15]} {[%emt 00:02:01]} e5
{[%clk 00:19:55]} {[%emt 00:00:04]} 9. h3 {[%clk 00:18:16]} {[%emt 00:00:03]}
Re8 {[%clk 00:19:55]} {[%emt 00:00:06]} 10. d5 {[%clk 00:17:52]} {[%emt
00:00:28]} c5 {[%clk 00:19:31]} {[%emt 00:00:30]} 11. Be3 {[%clk 00:15:34]}
{[%emt 00:02:22]} a6 {[%clk 00:18:36]} {[%emt 00:01:01]} 12. a4 {[%clk
00:15:34]} {[%emt 00:00:05]} Rb8 {[%clk 00:18:31]} {[%emt 00:00:10]} 13. Nh4
{[%clk 00:15:16]} {[%emt 00:00:21]} h6 {[%clk 00:17:30]} {[%emt 00:01:06]} 14.
Qd2 {[%clk 00:15:20]} Kh7 {[%clk 00:17:33]} {[%emt 00:00:05]} 15. Kh2 {[%clk
00:15:03]} {[%emt 00:00:21]} Nf8 {[%emt 00:02:15]} 16. Rab1 {[%emt 00:03:46]}
Ng8 {[%clk 00:12:26]} {[%emt 00:00:46]} 17. b4 {[%clk 00:12:27]} {[%emt
00:01:16]} cxb4 {[%clk 00:12:08]} {[%emt 00:00:23]} 18. Rxb4 {[%clk 00:12:30]}
{[%emt 00:00:03]} f5 {[%clk 00:12:02]} {[%emt 00:00:10]} 19. Ba7 {[%clk
00:12:10]} {[%emt 00:00:25]} Ra8 {[%clk 00:12:01]} {[%emt 00:00:07]} 20. Bb6
{[%clk 00:12:13]} {[%emt 00:00:02]} Qf6 {[%clk 00:10:47]} {[%emt 00:01:19]} 21.
c5 {[%clk 00:12:09]} {[%emt 00:00:09]} Ne7 {[%clk 00:09:46]} {[%emt 00:01:06]}
22. Rc4 {[%clk 00:10:10]} {[%emt 00:02:03]} Nd7 {[%clk 00:09:35]} {[%emt
00:00:16]} 23. a5 {[%clk 00:09:50]} {[%emt 00:00:26]} dxc5 {[%clk 00:06:57]}
{[%emt 00:02:43]} 24. Na4 {[%clk 00:09:38]} {[%emt 00:00:16]} fxe4 {[%clk
00:05:34]} {[%emt 00:01:29]} 25. Bxe4 {[%clk 00:09:26]} {[%emt 00:00:16]} Nf5
{[%clk 00:05:34]} {[%emt 00:00:05]} 26. Nxg6 {[%clk 00:08:14]} {[%emt
00:01:16]} Qxg6 {[%clk 00:05:38]} {[%emt 00:00:02]} 27. g4 {[%clk 00:08:17]}
{[%emt 00:00:02]} Nf6 {[%clk 00:05:42]} 28. gxf5 {[%clk 00:08:11]} {[%emt
00:00:13]} Bxf5 {[%clk 00:05:27]} {[%emt 00:00:19]} 29. Rg1 {[%clk 00:07:11]}
{[%emt 00:01:05]} Nxe4 {[%clk 00:05:29]} {[%emt 00:00:04]} 30. Rxe4 {[%clk
00:07:14]} {[%emt 00:00:02]} Qh5 {[%clk 00:04:49]} {[%emt 00:00:45]} 31. Reg4
{[%clk 00:07:02]} {[%emt 00:00:16]} Bxg4 {[%clk 00:04:27]} {[%emt 00:00:28]} 32.
Rxg4 {[%clk 00:07:04]} {[%emt 00:00:02]} e4 {[%clk 00:04:31]} 33. Nxc5 {[%clk
00:06:51]} {[%emt 00:00:19]} Be5+ {[%clk 00:04:33]} {[%emt 00:00:03]} 34. Kg2
{[%clk 00:06:55]} Rg8 {[%clk 00:04:33]} {[%emt 00:00:06]} 35. Nxe4 {[%clk
00:05:40]} {[%emt 00:01:19]} Rxg4+ {[%clk 00:04:22]} {[%emt 00:00:16]} 36. hxg4
{[%clk 00:05:43]} Qh2+ {[%clk 00:04:24]} {[%emt 00:00:05]} 37. Kf3 {[%clk
00:05:25]} {[%emt 00:00:21]} Rf8+ {[%clk 00:04:28]} 38. Ke2 {[%clk 00:05:25]}
{[%emt 00:00:08]} Qg2 {[%clk 00:04:04]} {[%emt 00:00:30]} 39. Qd3 {[%clk
00:04:51]} {[%emt 00:00:37]} Qxg4+ {[%clk 00:04:07]} {[%emt 00:00:04]} 40. f3
{[%clk 00:04:55]} Qg6 {[%clk 00:02:08]} {[%emt 00:02:05]} 41. d6 {[%clk
00:04:58]} {[%emt 00:00:02]} Bxd6 {[%clk 00:01:48]} {[%emt 00:00:24]} 42. Qxd6
{[%clk 00:05:02]} Qg2+ {[%clk 00:01:39]} {[%emt 00:00:15]} 43. Bf2 {[%clk
00:04:52]} {[%emt 00:00:15]} Qxf3+ {[%clk 00:01:43]} 44. Kd2 {[%clk 00:04:40]}
{[%emt 00:00:18]} Rf7 {[%clk 00:01:45]} {[%emt 00:00:04]} 45. Qd3 {[%clk
00:04:38]} {[%emt 00:00:07]} Qxd3+ {[%clk 00:01:32]} {[%emt 00:00:18]} 46. Kxd3
{[%clk 00:04:41]} Kg6 {[%clk 00:01:36]} 47. Ke3 {[%clk 00:04:19]} {[%emt
00:00:28]} Rf5 {[%clk 00:01:38]} {[%emt 00:00:03]} 48. Be1 {[%clk 00:04:20]}
{[%emt 00:00:04]} Rb5 {[%clk 00:01:37]} {[%emt 00:00:06]} 49. Nd6 {[%clk
00:03:58]} {[%emt 00:00:25]} Rb3+ {[%clk 00:01:29]} {[%emt 00:00:16]} 50. Kd4
{[%clk 00:03:55]} {[%emt 00:00:08]} h5 {[%clk 00:01:28]} {[%emt 00:00:06]} 51.
Kc4 {[%clk 00:03:58]} Rb1 {[%clk 00:01:31]} {[%emt 00:00:04]} 52. Bb4 {[%clk
00:04:02]} h4 {[%clk 00:01:32]} {[%emt 00:00:04]} 53. Nxb7 {[%clk 00:04:06]}
Rxb4+ {[%clk 00:01:26]} {[%emt 00:00:11]} 54. Kxb4 {[%clk 00:04:09]} {[%emt
00:00:02]} h3 {[%clk 00:01:31]} 55. Nc5 {[%clk 00:04:02]} {[%emt 00:00:12]} h2
{[%clk 00:01:35]} 56. Nxa6 {[%clk 00:04:05]} {[%emt 00:00:02]} h1=Q {[%clk
00:01:39]} 57. Kc5 {[%clk 00:04:07]} {[%emt 00:00:04]} Qc1+ {[%clk 00:01:36]}
{[%emt 00:00:08]} 58. Kb5 {[%clk 00:04:09]} {[%emt 00:00:04]} Kf7 {[%clk
00:01:33]} {[%emt 00:00:08]} 59. Nc5 {[%clk 00:04:10]} {[%emt 00:00:04]} Qb2+
{[%clk 00:01:14]} {[%emt 00:00:24]} 60. Kc6 {[%clk 00:04:09]} {[%emt 00:00:05]}
Qg2+ {[%clk 00:01:15]} {[%emt 00:00:04]} 61. Kb6 {[%clk 00:04:07]} {[%emt
00:00:07]} Qa8 {[%clk 00:01:11]} {[%emt 00:00:10]} 62. a6 {[%clk 00:04:09]}
{[%emt 00:00:03]} Ke7 {[%clk 00:01:12]} {[%emt 00:00:03]} 63. Nb7 {[%clk
00:04:04]} {[%emt 00:00:10]} Kd7 {[%clk 00:01:12]} {[%emt 00:00:05]} 64. a7
{[%clk 00:03:50]} {[%emt 00:00:20]} Kc8 {[%clk 00:00:47]} {[%emt 00:00:30]} 65.
Nc5 {[%clk 00:03:40]} {[%emt 00:00:14]} Qd5 {[%clk 00:00:46]} {[%emt 00:00:06]}
66. Kb5 {[%clk 00:03:37]} {[%emt 00:00:08]} Kc7 {[%clk 00:00:43]} {[%emt
00:00:07]} 67. Kb4 {[%clk 00:03:21]} {[%emt 00:00:22]} Kb6 {[%clk 00:00:42]}
{[%emt 00:00:06]} 68. Nd7+ {[%emt 00:00:39]} Kxa7 {[%emt 00:00:03]} 0-1

[Event "Nové Hrady - Rapid A"]
[Site "Nové Hrady, Czech Republic"]
[Date "2023.08.12"]
[Round "2.3"]
[White "Hák, David"]
[Black "Rausch, Rudolf"]
[Result "1-0"]
[TimeControl "2x20min+5s"]
[WhiteFideId "377007"]
[BlackFideId "1639455"]
[WhiteElo "2123"]
[BlackElo "1861"]

1. d4 {[%clk 00:20:05]} {[%emt 00:00:02]} Nf6 {[%clk 00:20:05]} {[%emt
00:00:03]} 2. c4 {[%clk 00:20:05]} e5 {[%clk 00:20:05]} 3. dxe5 {[%emt
00:00:04]} Ng4 4. Nf3 {[%clk 00:19:47]} {[%emt 00:00:24]} Nc6 {[%clk 00:20:05]}
5. Bf4 {[%clk 00:18:17]} {[%emt 00:01:35]} Bb4+ {[%clk 00:20:05]} {[%emt
00:00:03]} 6. Nc3 {[%clk 00:18:03]} {[%emt 00:00:19]} Qe7 {[%clk 00:19:27]}
{[%emt 00:00:44]} 7. Qd5 {[%clk 00:17:56]} {[%emt 00:00:11]} Bxc3+ {[%clk
00:19:06]} {[%emt 00:00:26]} 8. bxc3 {[%clk 00:17:56]} {[%emt 00:00:02]} Qa3
{[%clk 00:18:08]} {[%emt 00:01:03]} 9. Qd3 {[%clk 00:15:13]} {[%emt 00:02:47]}
Qc5 {[%clk 00:17:44]} {[%emt 00:00:29]} 10. e3 {[%clk 00:14:24]} {[%emt
00:00:55]} Ngxe5 {[%clk 00:17:38]} {[%emt 00:00:10]} 11. Nxe5 {[%clk 00:14:24]}
Nxe5 {[%clk 00:17:38]} {[%emt 00:00:03]} 12. Qd4 {[%clk 00:14:10]} {[%emt
00:00:19]} Qxd4 {[%clk 00:17:26]} {[%emt 00:00:17]} 13. cxd4 {[%clk 00:14:10]}
{[%emt 00:00:03]} Ng6 {[%clk 00:16:22]} {[%emt 00:01:09]} 14. Bxc7 {[%clk
00:14:10]} {[%emt 00:00:04]} b6 {[%clk 00:16:12]} {[%emt 00:00:15]} 15. Bd6
{[%clk 00:13:50]} {[%emt 00:00:26]} Bb7 {[%clk 00:16:07]} {[%emt 00:00:10]} 16.
d5 {[%clk 00:13:47]} {[%emt 00:00:07]} f6 {[%clk 00:15:56]} {[%emt 00:00:17]}
17. Be2 {[%clk 00:13:28]} {[%emt 00:00:24]} Kf7 {[%clk 00:15:56]} {[%emt
00:00:04]} 18. O-O {[%clk 00:13:20]} {[%emt 00:00:13]} Rhe8 {[%clk 00:15:53]}
{[%emt 00:00:06]} 19. a4 {[%clk 00:13:11]} {[%emt 00:00:15]} Ne7 {[%clk
00:15:33]} {[%emt 00:00:25]} 20. Rfb1 {[%clk 00:12:32]} {[%emt 00:00:44]} Ba6
{[%clk 00:15:17]} {[%emt 00:00:21]} 21. a5 {[%clk 00:12:17]} {[%emt 00:00:20]}
Nxd5 {[%clk 00:15:16]} {[%emt 00:00:06]} 22. axb6 {[%clk 00:10:56]} {[%emt
00:01:27]} axb6 {[%clk 00:15:06]} {[%emt 00:00:14]} 23. Rxa6 {[%clk 00:10:11]}
{[%emt 00:00:51]} Nc3 {[%clk 00:14:55]} {[%emt 00:00:16]} 24. Rxa8 {[%clk
00:09:51]} {[%emt 00:00:25]} Rxa8 {[%clk 00:14:41]} {[%emt 00:00:19]} 25. Bf3
{[%clk 00:09:51]} {[%emt 00:00:04]} Ra4 {[%clk 00:14:04]} {[%emt 00:00:39]} 26.
Rc1 {[%clk 00:09:39]} {[%emt 00:00:18]} Ke6 {[%clk 00:13:35]} {[%emt 00:00:34]}
27. Bf8 {[%clk 00:08:18]} {[%emt 00:01:26]} Rxc4 {[%clk 00:13:32]} {[%emt
00:00:08]} 28. Kf1 {[%clk 00:07:38]} {[%emt 00:00:46]} g6 {[%clk 00:13:14]}
{[%emt 00:00:23]} 29. Ba3 {[%clk 00:07:32]} {[%emt 00:00:11]} b5 {[%clk
00:13:09]} {[%emt 00:00:11]} 30. Be2 {[%clk 00:07:06]} {[%emt 00:00:30]} Nxe2
{[%clk 00:13:09]} {[%emt 00:00:05]} 31. Rxc4 {[%clk 00:07:06]} {[%emt
00:00:03]} Ng3+ {[%emt 00:00:15]} 32. hxg3 bxc4 {[%clk 00:13:00]} 33. Ke2
{[%clk 00:07:04]} {[%emt 00:00:08]} d5 {[%clk 00:13:00]} {[%emt 00:00:15]} 34.
Kd2 {[%clk 00:07:01]} h5 {[%clk 00:12:57]} {[%emt 00:00:03]} 35. Kc3 {[%clk
00:07:01]} {[%emt 00:00:05]} Ke5 {[%clk 00:12:57]} {[%emt 00:00:04]} 36. Bc5
{[%clk 00:06:57]} {[%emt 00:00:09]} g5 {[%clk 00:12:46]} {[%emt 00:00:16]} 37.
Bd4+ {[%clk 00:06:52]} {[%emt 00:00:10]} Ke6 {[%clk 00:12:46]} 38. Kb4 {[%clk
00:06:46]} {[%emt 00:00:11]} f5 {[%clk 00:12:31]} {[%emt 00:00:20]} 39. f4
{[%clk 00:06:34]} {[%emt 00:00:17]} gxf4 {[%clk 00:12:21]} {[%emt 00:00:16]} 40.
gxf4 {[%clk 00:06:30]} {[%emt 00:00:08]} Kd6 {[%clk 00:12:21]} {[%emt
00:00:02]} 41. Kb5 {[%clk 00:06:30]} {[%emt 00:00:05]} h4 {[%clk 00:12:11]}
{[%emt 00:00:15]} 42. Kb6 {[%clk 00:06:30]} c3 {[%clk 00:11:50]} {[%emt
00:00:27]} 43. Bxc3 {[%clk 00:06:27]} {[%emt 00:00:08]} d4 {[%clk 00:11:50]}
{[%emt 00:00:03]} 44. Bxd4 {[%emt 00:00:34]} Kd5 {[%emt 00:00:01]} 45. Bf6
{[%clk 00:05:57]} {[%emt 00:00:02]} Ke4 {[%clk 00:11:50]} {[%emt 00:00:02]} 46.
Bxh4 {[%clk 00:05:57]} {[%emt 00:00:02]} Kxe3 {[%clk 00:11:50]} {[%emt
00:00:02]} 47. g3 {[%clk 00:05:57]} Kd4 {[%clk 00:11:31]} {[%emt 00:00:25]} 48.
Kc6 {[%clk 00:05:57]} {[%emt 00:00:03]} Ke4 {[%clk 00:11:27]} {[%emt 00:00:08]}
49. Kd6 {[%clk 00:05:57]} Kf3 {[%clk 00:11:27]} 50. Ke5 {[%clk 00:05:57]}
{[%emt 00:00:06]} Kg4 {[%clk 00:11:27]} {[%emt 00:00:02]} 51. Ke6 {[%clk
00:05:57]} Kh5 {[%clk 00:11:27]} {[%emt 00:00:06]} 52. Kxf5 {[%clk 00:05:57]}
{[%emt 00:00:02]} Kh6 {[%clk 00:11:27]} 53. Ke6 {[%clk 00:05:56]} {[%emt
00:00:07]} Kh5 {[%clk 00:11:27]} 54. f5 {[%clk 00:05:56]} {[%emt 00:00:03]} 1-0

[Event "Nové Hrady - Rapid A"]
[Site "Nové Hrady, Czech Republic"]
[Date "2023.08.12"]
[Round "2.4"]
[White "Slabý, Matěj"]
[Black "Pochinkov, Andrey"]
[Result "0-1"]
[TimeControl "2x20min+5s"]
[WhiteFideId "23734876"]
[BlackFideId "4146387"]
[WhiteElo "1944"]
[BlackElo "2052"]

1. e4 {[%clk 00:20:06]} {[%emt 00:00:04]} e6 {[%clk 00:20:08]} {[%emt
00:00:02]} 2. d4 {[%clk 00:20:06]} {[%emt 00:00:05]} d5 {[%clk 00:20:12]} 3. e5
{[%clk 00:20:09]} {[%emt 00:00:02]} c5 {[%clk 00:20:15]} 4. c3 {[%clk
00:20:05]} {[%emt 00:00:12]} Nc6 {[%clk 00:20:18]} 5. Nf3 {[%clk 00:20:06]}
{[%emt 00:00:05]} Bd7 {[%clk 00:19:39]} {[%emt 00:00:43]} 6. Be2 {[%clk
00:18:00]} {[%emt 00:02:11]} Qb6 {[%clk 00:19:10]} {[%emt 00:00:33]} 7. O-O
{[%clk 00:17:34]} {[%emt 00:00:31]} cxd4 {[%clk 00:19:02]} {[%emt 00:00:13]} 8.
cxd4 {[%clk 00:17:37]} {[%emt 00:00:03]} Nh6 {[%clk 00:18:57]} {[%emt
00:00:10]} 9. Nc3 {[%clk 00:16:34]} {[%emt 00:01:08]} Nf5 {[%clk 00:18:56]}
{[%emt 00:00:05]} 10. Na4 {[%clk 00:15:48]} {[%emt 00:00:53]} Qa5 {[%clk
00:17:24]} {[%emt 00:01:36]} 11. Bd2 {[%clk 00:15:30]} {[%emt 00:00:22]} Qd8
{[%clk 00:16:46]} {[%emt 00:00:44]} 12. Be3 {[%clk 00:15:08]} {[%emt 00:00:27]}
h6 {[%clk 00:14:36]} {[%emt 00:02:14]} 13. a3 {[%clk 00:14:31]} {[%emt
00:00:43]} a5 {[%clk 00:13:01]} {[%emt 00:01:41]} 14. Rc1 {[%clk 00:13:48]}
{[%emt 00:00:48]} Rc8 {[%clk 00:11:16]} {[%emt 00:01:50]} 15. Nc5 {[%clk
00:12:23]} {[%emt 00:01:30]} Bxc5 {[%clk 00:11:07]} {[%emt 00:00:13]} 16. Rxc5
{[%clk 00:11:50]} {[%emt 00:00:37]} Nce7 {[%clk 00:10:35]} {[%emt 00:00:38]} 17.
Rxc8 {[%clk 00:11:24]} {[%emt 00:00:30]} Qxc8 {[%clk 00:10:27]} {[%emt
00:00:14]} 18. Qd2 {[%clk 00:11:26]} {[%emt 00:00:03]} Qd8 {[%clk 00:10:09]}
{[%emt 00:00:22]} 19. b4 {[%clk 00:09:46]} {[%emt 00:01:46]} axb4 {[%clk
00:09:25]} {[%emt 00:00:49]} 20. Qxb4 {[%clk 00:09:48]} {[%emt 00:00:02]} Nxe3
{[%clk 00:08:56]} {[%emt 00:00:35]} 21. fxe3 {[%clk 00:09:51]} {[%emt
00:00:02]} Nf5 {[%clk 00:08:39]} {[%emt 00:00:22]} 22. Qxb7 {[%clk 00:06:29]}
{[%emt 00:03:27]} Nxe3 {[%clk 00:08:42]} {[%emt 00:00:03]} 23. Re1 {[%clk
00:04:28]} {[%emt 00:02:05]} O-O {[%clk 00:06:56]} {[%emt 00:01:51]} 24. Bd3
{[%clk 00:04:18]} {[%emt 00:00:15]} Nc4 {[%clk 00:06:37]} {[%emt 00:00:23]} 25.
Bxc4 {[%clk 00:04:11]} {[%emt 00:00:12]} dxc4 {[%clk 00:06:40]} 26. Qb4 {[%clk
00:04:02]} {[%emt 00:00:16]} Qa8 {[%clk 00:06:11]} {[%emt 00:00:34]} 27. Re3
{[%clk 00:03:29]} {[%emt 00:00:38]} Qd5 {[%clk 00:05:05]} {[%emt 00:01:10]} 28.
Rc3 {[%clk 00:02:12]} {[%emt 00:01:24]} Rc8 {[%clk 00:05:04]} {[%emt 00:00:06]}
29. a4 {[%clk 00:01:46]} {[%emt 00:00:31]} g5 {[%clk 00:04:51]} {[%emt
00:00:18]} 30. h3 {[%clk 00:01:34]} {[%emt 00:00:17]} h5 {[%clk 00:04:32]}
{[%emt 00:00:24]} 31. Qe7 {[%clk 00:01:26]} {[%emt 00:00:13]} g4 {[%clk
00:04:08]} {[%emt 00:00:29]} 32. hxg4 {[%clk 00:01:18]} {[%emt 00:00:13]} hxg4
{[%clk 00:04:11]} 33. Qg5+ {[%clk 00:01:21]} Kf8 {[%clk 00:04:09]} {[%emt
00:00:10]} 34. Qxg4 {[%clk 00:01:19]} {[%emt 00:00:08]} Bxa4 {[%clk 00:04:09]}
{[%emt 00:00:06]} 35. Ng5 {[%clk 00:00:43]} {[%emt 00:00:40]} Qb7 {[%clk
00:02:47]} {[%emt 00:01:26]} 36. Rf3 {[%clk 00:00:08]} {[%emt 00:00:41]} Qb1+
{[%clk 00:02:43]} {[%emt 00:00:09]} 37. Kh2 {[%clk 00:00:12]} Be8 {[%clk
00:02:38]} {[%emt 00:00:12]} 38. Nxe6+ {[%clk 00:00:12]} {[%emt 00:00:04]} Ke7
{[%clk 00:02:39]} {[%emt 00:00:04]} 39. d5 {[%clk 00:00:13]} {[%emt 00:00:04]}
Qh7+ {[%clk 00:02:19]} {[%emt 00:00:25]} 40. Rh3 {[%clk 00:00:10]} {[%emt
00:00:09]} Qg6 {[%clk 00:02:15]} {[%emt 00:00:08]} 41. Qxg6 {[%clk 00:00:09]}
{[%emt 00:00:06]} fxg6 {[%clk 00:02:18]} {[%emt 00:00:02]} 42. Rc3 {[%clk
00:00:10]} {[%emt 00:00:04]} Bf7 {[%clk 00:02:14]} {[%emt 00:00:09]} 43. Nf4
{[%clk 00:00:10]} {[%emt 00:00:05]} g5 {[%clk 00:02:17]} {[%emt 00:00:02]} 44.
d6+ {[%clk 00:00:14]} Kd7 {[%clk 00:02:18]} {[%emt 00:00:04]} 45. Ne2 {[%clk
00:00:09]} {[%emt 00:00:12]} Be6 {[%clk 00:02:14]} {[%emt 00:00:08]} 46. Nd4
{[%clk 00:00:09]} {[%emt 00:00:06]} Rc5 {[%clk 00:02:14]} {[%emt 00:00:03]} 47.
Re3 {[%clk 00:00:10]} {[%emt 00:00:05]} c3 {[%clk 00:02:15]} {[%emt 00:00:05]}
48. Re2 {[%clk 00:00:08]} {[%emt 00:00:07]} Bc4 {[%clk 00:02:08]} {[%emt
00:00:11]} 49. Re3 {[%clk 00:00:08]} {[%emt 00:00:06]} Be6 {[%clk 00:02:00]}
{[%emt 00:00:12]} 50. Re2 {[%clk 00:00:12]} Rc4 {[%clk 00:02:02]} {[%emt
00:00:04]} 51. Nf3 {[%clk 00:00:10]} {[%emt 00:00:07]} c2 {[%clk 00:02:02]}
{[%emt 00:00:05]} 52. Rxc2 {[%clk 00:00:07]} {[%emt 00:00:09]} Rxc2 {[%clk
00:02:05]} {[%emt 00:00:02]} 53. Nxg5 {[%clk 00:00:11]} Bd5 {[%clk 00:02:07]}
{[%emt 00:00:03]} 54. Kh3 {[%clk 00:00:10]} {[%emt 00:00:06]} Bxg2+ {[%clk
00:02:07]} {[%emt 00:00:06]} 55. Kg3 {[%clk 00:00:14]} Bd5 {[%clk 00:02:10]}
{[%emt 00:00:02]} 56. Kf4 {[%clk 00:00:16]} {[%emt 00:00:03]} Rf2+ {[%clk
00:02:11]} {[%emt 00:00:04]} 57. Kg4 {[%clk 00:00:21]} Rg2+ {[%clk 00:02:14]}
{[%emt 00:00:02]} 0-1